fUST/lending_fUST_20250729
["ID","MTS","AMOUNT","RATE_DAILY","PERIOD"]
[375754171,1753729865126,-151.0,0.000249,7]
[375754172,1753729865136,-152.841085,0.000249,7]
[375754173,1753729865145,-151.0,0.000249,7]
[375754174,1753729865155,-151.0,0.000249,7]
[375754175,1753729865164,-151.0,0.000249,7]
[375754176,1753729865173,-151.0,0.000249,7]
[375754177,1753729865183,-151.0,0.000249,7]
[375754178,1753729865192,-231.818589,0.000249,7]
[375754179,1753729865201,-151.0,0.000249,7]
[375754180,1753729865211,-349.267036,0.000249,7]
[375754181,1753729865221,-151.0,0.000249,7]
[375754182,1753729865230,-349.267036,0.000249,7]
[375754183,1753729865240,-183.761024,0.000249,2]
[375754184,1753729865250,-586.760004,0.000249,7]
[375754185,1753729865259,-156.143482,0.000249,2]
[375754186,1753729865269,-321.791194,0.000249,7]
[375754187,1753729865279,-151.0,0.000249,7]
[375754188,1753729865288,-321.791194,0.000249,7]
[375754189,1753729865298,-151.0,0.000249,7]
[375754190,1753729865307,-151.0,0.000249,7]
[375754191,1753729865318,-151.0,0.000249,7]
[375754192,1753729865328,-151.0,0.000249,7]
[375754193,1753729865338,-151.0,0.000249,7]
[375754194,1753729865347,-297.272332,0.000249,7]
[375754195,1753729865357,-297.272332,0.000249,7]
[375754196,1753729865366,-151.0,0.000249,7]
[375754197,1753729865375,-570.735103,0.000249,7]
[375754198,1753729865385,-570.735103,0.000249,7]
[375754199,1753729865394,-151.0,0.000249,7]
[375754200,1753729865403,-151.0,0.000249,7]
[375754201,1753729865413,-151.0,0.000249,7]
[375754202,1753729865423,-238.581413,0.000249,7]
[375754203,1753729865432,-238.581413,0.000249,7]
[375754204,1753729865441,-151.0,0.000249,7]
[375754205,1753729865453,-151.0,0.000249,7]
[375754206,1753729865462,-826.0,0.000249,6]
[375754207,1753729865471,-151.0,0.000249,7]
[375754208,1753729865481,-151.0,0.000249,7]
[375754209,1753729865489,-151.0,0.000249,7]
[375754210,1753729865499,-151.0,0.000249,7]
[375754211,1753729865509,-513143.94804298,0.000249,2]
[375754212,1753729865706,-2429.84317157,0.00019178,2]
[375754213,1753729865715,-460.0,0.00019178,2]
[375754214,1753729865724,-460.0,0.00019452,2]
[375754215,1753729865733,-460.0,0.00019726,2]
[375754216,1753729865743,-460.0,0.0002,2]
[375754217,1753729865752,-460.0,0.0002,2]
[375754218,1753729865762,-605.88,0.00020273,2]
[375754219,1753729865771,-460.0,0.00020273,2]
[375754220,1753729865780,-460.0,0.00020273,2]
[375754221,1753729865790,-460.0,0.00020273,2]
[375754222,1753729865799,-460.0,0.00020273,2]
[375754223,1753729865808,-605.88,0.00020547,2]
[375754224,1753729865818,-239.712321,0.00020547,2]
[375754225,1753729865828,-460.0,0.00020547,2]
[375754226,1753729865838,-605.88,0.00020821,2]
[375754227,1753729865848,-605.88,0.00021095,2]
[375754228,1753729865857,-500.28,0.00021369,2]
[375754229,1753729865867,-605.88,0.00021369,2]
[375754230,1753729865876,-500.28,0.00021643,2]
[375754231,1753729865886,-605.88,0.00021643,2]
[375754232,1753729865896,-500.28,0.00021917,2]
[375754233,1753729865905,-605.88,0.00021917,2]
[375754234,1753729865915,-500.28,0.00022191,2]
[375754235,1753729865924,-500.28,0.00022465,2]
[375754236,1753729865934,-500.28,0.00022739,2]
[375754237,1753729865943,-2534.99,0.00023835,2]
[375754238,1753729865952,-198.0,0.00024658,2]
[375754239,1753729865962,-18100.61450742,0.000249,2]
[375754240,1753729866380,-407.7664459,0.00019178,2]
[375754241,1753729866389,-460.0,0.00019178,2]
[375754242,1753729866398,-460.0,0.00019178,2]
[375754243,1753729866407,-183.3,0.00019442,3]
[375754244,1753729866416,-345.50537266,0.00019452,2]
[375754245,1753729866425,-460.0,0.00019452,2]
[375754246,1753729866435,-460.0,0.00019452,2]
[375754247,1753729866444,-460.0,0.00020547,2]
[375754248,1753729866453,-366.6,0.00020812,3]
[375754249,1753729866462,-460.0,0.00020821,2]
[375754250,1753729866471,-460.0,0.00020821,2]
[375754251,1753729866480,-460.0,0.00021095,2]
[375754252,1753729866489,-460.0,0.00021369,2]
[375754253,1753729866498,-460.0,0.00021643,2]
[375754254,1753729866585,-460.0,0.00021917,2]
[375754255,1753729866607,-605.88,0.00022191,2]
[375754256,1753729866617,-460.0,0.00022191,2]
[375754257,1753729866625,-605.88,0.00022465,2]
[375754258,1753729866634,-460.0,0.00022465,2]
[375754259,1753729866643,-605.88,0.00022739,2]
[375754260,1753729866652,-460.0,0.00022739,2]
[375754261,1753729866662,-500.28,0.00023013,2]
[375754262,1753729866671,-605.88,0.00023013,2]
[375754263,1753729866681,-460.0,0.00023013,2]
[375754264,1753729866690,-500.28,0.00023287,2]
[375754265,1753729866700,-605.88,0.00023287,2]
[375754266,1753729866709,-460.0,0.00023287,2]
[375754267,1753729866719,-500.28,0.00023561,2]
[375754268,1753729866728,-605.88,0.00023561,2]
[375754269,1753729866737,-500.28,0.00023835,2]
[375754270,1753729866746,-605.88,0.00023835,2]
[375754271,1753729866755,-500.28,0.00024109,2]
[375754272,1753729866764,-605.88,0.00024109,2]
[375754273,1753729866774,-500.28,0.00024383,2]
[375754274,1753729866783,-605.88,0.00024383,2]
[375754275,1753729866792,-335.623899,0.00024657,7]
[375754276,1753729866802,-500.28,0.00024657,2]
[375754277,1753729866812,-605.88,0.00024657,2]
[375754278,1753729866822,-89841.8481676,0.000249,2]
[375754279,1753729866832,-151.0,0.000249,7]
[375754280,1753729866842,-500.0,0.000249,5]
[375754281,1753729866857,-151.0,0.000249,7]
[375754282,1753729866868,-335.623899,0.000249,7]
[375754283,1753729866878,-752.22,0.00024908,2]
[375754284,1753729866887,-500.0,0.0002493,2]
[375754285,1753729866896,-1278.83,0.00024931,2]
[375754286,1753729866906,-877.75,0.00024931,2]
[375754287,1753729866915,-624.57,0.00024931,2]
[375754288,1753729866924,-472.49,0.00024931,2]
[375754289,1753729866933,-7088.48,0.00024931,2]
[375754290,1753729866942,-716.38,0.00024931,2]
[375754291,1753729866952,-961.79,0.00024931,2]
[375754292,1753729866963,-460.0,0.00024931,2]
[375754293,1753729866982,-2680.01,0.00024931,2]
[375754294,1753729866991,-2011.05,0.00024931,2]
[375754295,1753729867000,-823.79,0.00024931,2]
[375754296,1753729867009,-523.5,0.00024931,2]
[375754297,1753729867018,-460.0,0.00024931,2]
[375754298,1753729867027,-713.62,0.00024931,2]
[375754299,1753729867037,-572.06,0.00024931,2]
[375754300,1753729867046,-3372.46,0.00024931,2]
[375754301,1753729867055,-509.18,0.00024931,2]
[375754302,1753729867065,-468.35,0.00024931,2]
[375754303,1753729867074,-741.03,0.00024931,2]
[375754304,1753729867083,-585.37,0.00024931,2]
[375754305,1753729867093,-533.75,0.00024931,2]
[375754306,1753729867107,-530.12,0.00024931,2]
[375754307,1753729867116,-1201.65,0.00024931,2]
[375754308,1753729867126,-2656.96,0.00024931,2]
[375754309,1753729867135,-4046.5,0.00024931,2]
[375754310,1753729867144,-888.97,0.00024931,2]
[375754311,1753729867157,-8402.05,0.00024931,2]
[375754312,1753729867168,-688.6,0.00024931,2]
[375754313,1753729867184,-2328.79,0.00024931,2]
[375754314,1753729867195,-647.64,0.00024931,2]
[375754315,1753729867205,-1973.91,0.00024931,2]
[375754316,1753729867215,-672.37,0.00024931,2]
[375754317,1753729867225,-482.15,0.00024931,2]
[375754318,1753729867236,-784.05,0.00024931,2]
[375754319,1753729867246,-973.28,0.00024931,2]
[375754320,1753729867255,-2094.51,0.00024931,2]
[375754321,1753729867264,-1756.74,0.00024931,2]
[375754322,1753729867273,-494.05,0.00024931,2]
[375754323,1753729867284,-740.03,0.00024931,2]
[375754324,1753729867293,-891.84,0.00024931,2]
[375754325,1753729867302,-634.74,0.00024931,2]
[375754326,1753729867312,-3354.14,0.00024931,2]
[375754327,1753729867325,-1202.31,0.00024931,2]
[375754328,1753729867333,-549.31,0.00024931,2]
[375754329,1753729867342,-936.5,0.00024931,2]
[375754330,1753729867353,-1181.75,0.00024931,2]
[375754331,1753729867362,-500.28,0.00024931,2]
[375754332,1753729867372,-605.88,0.00024931,2]
[375754333,1753729867382,-245.05000522,0.00024932,2]
[375754334,1753729867391,-151.0,0.00024932,2]
[375754335,1753729867400,-151.0,0.00024932,2]
[375754336,1753729867409,-151.0,0.00024932,2]
[375754337,1753729867418,-752.0,0.00024932,2]
[375754338,1753729867427,-689.0,0.00024932,2]
[375754339,1753729867436,-151.0,0.00024932,2]
[375754340,1753729867445,-221.75894399,0.00024932,2]
[375754341,1753729867455,-198.0,0.00024932,2]
[375754342,1753729867464,-423.0,0.00024932,2]
[375754343,1753729867473,-151.0,0.00024932,2]
[375754344,1753729867482,-500.0,0.00024938,2]
[375754345,1753729867491,-500.0,0.00024954,2]
[375754346,1753729867500,-500.0,0.00024965,2]
[375754347,1753729867509,-1131.957548,0.0002498,5]
[375754348,1753729867518,-500.0,0.00024985,2]
[375754349,1753729867528,-977.79,0.00024992,5]
[375754350,1753729867538,-500.0,0.00024994,2]
[375754351,1753729867547,-81370.60306196,0.00025,2]
[375754352,1753729867556,-600.0,0.00025,2]
[375754353,1753729867566,-30959.16755737,0.00025,2]
[375754354,1753729867575,-80760.21938287,0.00025,14]
[375754355,1753729867584,-3023.98844282,0.00025,30]
[375754356,1753729867593,-14712.24096336,0.00025,30]
[375754357,1753729867605,-2502.32,0.00025,5]
[375754358,1753729867614,-9300.0,0.00025,60]
[375754359,1753729867622,-160.0,0.00025,30]
[375754360,1753729867631,-151.0,0.00025,7]
[375754361,1753729867640,-151.0,0.00025,7]
[375754362,1753729867650,-1000.0,0.00025,5]
[375754363,1753729867659,-160.0,0.00025,3]
[375754364,1753729867668,-526.58819812,0.00025,3]
[375754365,1753729867677,-526.58819812,0.00025,30]
[375754366,1753729867686,-526.58819812,0.00025,7]
[375754367,1753729867695,-12634.73134317,0.00025,3]
[375754368,1753729867704,-12634.73134317,0.00025,30]
[375754369,1753729867714,-160.0,0.00025,3]
[375754370,1753729867722,-500.0,0.00025,2]
[375754371,1753729867732,-216.06083566,0.00025,3]
[375754372,1753729867741,-216.06083566,0.00025,30]
[375754373,1753729867750,-840.90880427,0.00025,3]
[375754374,1753729867759,-840.90880427,0.00025,30]
[375754375,1753729867768,-312.16666667,0.00025,3]
[375754376,1753729867778,-312.16666667,0.00025,30]
[375754377,1753729867787,-312.16666667,0.00025,7]
[375754378,1753729867796,-160.0,0.00025,3]
[375754379,1753729867805,-160.0,0.00025,30]
[375754380,1753729867814,-231.34820253,0.00025,3]
[375754381,1753729867823,-231.34820253,0.00025,30]
[375754382,1753729867832,-160.0,0.00025,3]
[375754383,1753729867841,-160.0,0.00025,3]
[375754384,1753729867852,-160.0,0.00025,3]
[375754385,1753729867862,-160.0,0.00025,30]
[375754386,1753729867872,-500.0,0.00025006,2]
[375754387,1753729867881,-322.0,0.00025015,2]
[375754388,1753729867891,-500.0,0.00025024,2]
[375754389,1753729867900,-500.0,0.00025028,2]
[375754390,1753729867909,-9666.31269604,0.00025037,2]
[375754391,1753729867918,-5000.0,0.00025037,4]
[375754392,1753729867927,-5000.0,0.00025037,5]
[375754393,1753729867936,-183.761024,0.0002505,10]
[375754394,1753729867944,-508.82673773,0.0002505,2]
[375754395,1753729867954,-183.761024,0.00025051,4]
[375754396,1753729867962,-156.143482,0.00025051,4]
[375754397,1753729867971,-322.0,0.0002506,2]
[375754398,1753729867980,-977.79,0.00025092,6]
[375754399,1753729867990,-5384.14655033,0.00025094,2]
[375754400,1753729867999,-500.0,0.00025099,2]
[375754401,1753729868008,-183.761024,0.0002512,6]
[375754402,1753729868017,-500.0,0.00025167,2]
[375754403,1753729868027,-977.79,0.00025192,6]
[375754404,1753729868036,-1278.83,0.00025205,2]
[375754405,1753729868046,-877.75,0.00025205,2]
[375754406,1753729868057,-624.57,0.00025205,2]
[375754407,1753729868066,-472.49,0.00025205,2]
[375754408,1753729868075,-7088.48,0.00025205,2]
[375754409,1753729868084,-716.38,0.00025205,2]
[375754410,1753729868093,-961.79,0.00025205,2]
[375754411,1753729868103,-394.4877746,0.00025205,2]
[375754412,1753729868112,-2680.01,0.00025205,2]
[375754413,1753729868121,-2011.05,0.00025205,2]
[375754414,1753729868131,-823.79,0.00025205,2]
[375754415,1753729868140,-523.5,0.00025205,2]
[375754416,1753729868150,-460.0,0.00025205,2]
[375754417,1753729868159,-713.62,0.00025205,2]
[375754418,1753729868169,-572.06,0.00025205,2]
[375754419,1753729868178,-3372.46,0.00025205,2]
[375754420,1753729868187,-509.18,0.00025205,2]
[375754421,1753729868196,-468.35,0.00025205,2]
[375754422,1753729868205,-741.03,0.00025205,2]
[375754423,1753729868215,-585.37,0.00025205,2]
[375754424,1753729868224,-533.75,0.00025205,2]
[375754425,1753729868233,-530.12,0.00025205,2]
[375754426,1753729868321,-1201.65,0.00025205,2]
[375754427,1753729868336,-2656.96,0.00025205,2]
[375754428,1753729868345,-4046.5,0.00025205,2]
[375754429,1753729868357,-888.97,0.00025205,2]
[375754430,1753729868366,-8402.05,0.00025205,2]
[375754431,1753729868375,-688.6,0.00025205,2]
[375754432,1753729868384,-2328.79,0.00025205,2]
[375754433,1753729868393,-647.64,0.00025205,2]
[375754434,1753729868402,-1973.91,0.00025205,2]
[375754435,1753729868411,-672.37,0.00025205,2]
[375754436,1753729868421,-482.15,0.00025205,2]
[375754437,1753729868430,-784.05,0.00025205,2]
[375754438,1753729868440,-973.28,0.00025205,2]
[375754439,1753729868449,-2094.51,0.00025205,2]
[375754440,1753729868458,-1756.74,0.00025205,2]
[375754441,1753729868467,-494.05,0.00025205,2]
[375754442,1753729868476,-740.03,0.00025205,2]
[375754443,1753729868485,-891.84,0.00025205,2]
[375754444,1753729868494,-634.74,0.00025205,2]
[375754445,1753729868503,-3354.14,0.00025205,2]
[375754446,1753729868512,-1202.31,0.00025205,2]
[375754447,1753729868521,-549.31,0.00025205,2]
[375754448,1753729868531,-936.5,0.00025205,2]
[375754449,1753729868540,-1181.75,0.00025205,2]
[375754450,1753729868549,-500.28,0.00025205,2]
[375754451,1753729868559,-605.88,0.00025205,2]
[375754452,1753729868568,-292.0,0.00025206,2]
[375754453,1753729868577,-305.05852936,0.00025206,2]
[375754454,1753729868587,-752.0,0.00025206,2]
[375754455,1753729868596,-689.0,0.00025206,2]
[375754456,1753729868607,-151.0,0.00025206,2]
[375754457,1753729868617,-423.0,0.00025206,2]
[375754458,1753729868626,-151.0,0.00025206,2]
[375754459,1753729868635,-250.0,0.00025207,2]
[375754460,1753729868645,-1060.0,0.00025232,2]
[375754461,1753729868655,-500.0,0.00025251,2]
[375754462,1753729868664,-500.0,0.00025279,2]
[375754463,1753729868673,-977.79,0.00025292,4]
[375754464,1753729868684,-489.3479902,0.00025294,2]
[375754465,1753729868694,-183.761024,0.00025325,10]
[375754466,1753729868703,-500.0,0.00025338,2]
[375754467,1753729868712,-500.0,0.00025345,2]
[375754468,1753729868722,-500.0,0.00025358,2]
[375754469,1753729868732,-500.0,0.00025385,2]
[375754470,1753729868741,-977.79,0.00025392,5]
[375754471,1753729868751,-46633.0,0.000254,2]
[375754472,1753729868761,-500.0,0.00025407,2]
[375754473,1753729868771,-500.0,0.00025408,2]
[375754474,1753729868782,-500.0,0.00025415,5]
[375754475,1753729868791,-430.064903,0.00025452,2]
[375754476,1753729868801,-430.064903,0.00025452,2]
[375754477,1753729868810,-430.064903,0.00025452,2]
[375754478,1753729868820,-430.064903,0.00025452,2]
[375754479,1753729868837,-430.064903,0.00025452,2]
[375754480,1753729868850,-430.064903,0.00025452,2]
[375754481,1753729868861,-900.0,0.00025469,3]
[375754482,1753729868871,-1278.91689492,0.00025479,2]
[375754483,1753729868881,-877.81110409,0.00025479,2]
[375754484,1753729868892,-624.76359149,0.00025479,2]
[375754485,1753729868902,-472.51599663,0.00025479,2]
[375754486,1753729868912,-7088.49543646,0.00025479,2]
[375754487,1753729868922,-716.41,0.00025479,2]
[375754488,1753729868932,-961.83153145,0.00025479,2]
[375754489,1753729868944,-2680.09375354,0.00025479,2]
[375754490,1753729868954,-2011.1506088,0.00025479,2]
[375754491,1753729868964,-823.90772493,0.00025479,2]
[375754492,1753729868974,-523.63570738,0.00025479,2]
[375754493,1753729868984,-172.00771924,0.00025479,2]
[375754494,1753729868994,-713.75875445,0.00025479,2]
[375754495,1753729869004,-572.220799,0.00025479,2]
[375754496,1753729869014,-3372.60992387,0.00025479,2]
[375754497,1753729869025,-509.33116681,0.00025479,2]
[375754498,1753729869036,-468.38,0.00025479,2]
[375754499,1753729869046,-741.23138746,0.00025479,2]
[375754500,1753729869056,-585.39871891,0.00025479,2]
[375754501,1753729869066,-533.76113244,0.00025479,2]
[375754502,1753729869076,-530.26160482,0.00025479,2]
[375754503,1753729869086,-1201.88034299,0.00025479,2]
[375754504,1753729869096,-2657.04977201,0.00025479,2]
[375754505,1753729869107,-4046.56821303,0.00025479,2]
[375754506,1753729869117,-889.09298021,0.00025479,2]
[375754507,1753729869128,-8402.15924801,0.00025479,2]
[375754508,1753729869138,-688.76403733,0.00025479,2]
[375754509,1753729869148,-2328.97783587,0.00025479,2]
[375754510,1753729869158,-647.69819947,0.00025479,2]
[375754511,1753729869168,-1973.92420532,0.00025479,2]
[375754512,1753729869178,-672.37958946,0.00025479,2]
[375754513,1753729869188,-482.15362281,0.00025479,2]
[375754514,1753729869198,-784.06359998,0.00025479,2]
[375754515,1753729869208,-973.31065889,0.00025479,2]
[375754516,1753729869218,-2094.67,0.00025479,2]
[375754517,1753729869228,-1756.8368694,0.00025479,2]
[375754518,1753729869238,-494.28121217,0.00025479,2]
[375754519,1753729869248,-740.07691337,0.00025479,2]
[375754520,1753729869261,-892.07959039,0.00025479,2]
[375754521,1753729869271,-634.79045077,0.00025479,2]
[375754522,1753729869287,-3354.32441865,0.00025479,2]
[375754523,1753729869297,-1202.43324768,0.00025479,2]
[375754524,1753729869309,-549.38859235,0.00025479,2]
[375754525,1753729869321,-936.70938017,0.00025479,2]
[375754526,1753729869334,-1181.82035837,0.00025479,2]
[375754527,1753729869344,-500.28564229,0.00025479,2]
[375754528,1753729869355,-605.92,0.00025479,2]
[375754529,1753729869366,-752.0,0.0002548,2]
[375754530,1753729869377,-689.0,0.0002548,2]
[375754531,1753729869387,-245.0,0.0002548,2]
[375754532,1753729869397,-423.0,0.0002548,2]
[375754533,1753729869410,-151.0,0.0002548,2]
[375754534,1753729869420,-969.0,0.00025483,2]
[375754535,1753729869430,-977.79,0.00025492,7]
[375754536,1753729869440,-1375.66,0.000255,7]
[375754537,1753729869449,-13614.55,0.000255,7]
[375754538,1753729869460,-151.0,0.000255,7]
[375754539,1753729869469,-5384.14655033,0.00025504,2]
[375754540,1753729869480,-241.70436,0.00025504,7]
[375754541,1753729869490,-500.0,0.0002557,2]
[375754542,1753729869504,-153.0,0.00025589,2]
[375754543,1753729869513,-578.0900773,0.00025589,2]
[375754544,1753729869523,-578.0900773,0.00025589,2]
[375754545,1753729869534,-578.0900773,0.00025589,2]
[375754546,1753729869544,-153.0,0.00025589,2]
[375754547,1753729869554,-578.0900773,0.00025589,2]
[375754548,1753729869564,-153.0,0.00025589,2]
[375754549,1753729869575,-578.0900773,0.00025589,2]
[375754550,1753729869586,-578.0900773,0.00025589,2]
[375754551,1753729869595,-977.79,0.00025592,5]
[375754552,1753729869606,-2035.28060856,0.000256,2]
[375754553,1753729869615,-183.761024,0.000256,10]
[375754554,1753729869624,-238.581413,0.00025611,7]
[375754555,1753729869634,-238.581413,0.00025611,7]
[375754556,1753729869644,-151.0,0.00025611,7]
[375754557,1753729869653,-500.0,0.00025624,2]
[375754558,1753729869662,-151.0,0.00025635,7]
[375754559,1753729869673,-151.0,0.00025635,7]
[375754560,1753729869682,-152.415016,0.00025635,7]
[375754561,1753729869692,-335.623899,0.00025635,7]
[375754562,1753729869702,-500.0,0.00025681,2]
[375754563,1753729869715,-151.0,0.00025692,7]
[375754564,1753729869724,-151.0,0.00025692,7]
[375754565,1753729869734,-151.0,0.00025692,7]
[375754566,1753729869744,-151.0,0.00025692,7]
[375754567,1753729869753,-151.0,0.00025692,7]
[375754568,1753729869763,-151.0,0.00025692,7]
[375754569,1753729869773,-151.0,0.00025692,7]
[375754570,1753729869783,-151.0,0.00025692,7]
[375754571,1753729869792,-977.79,0.00025692,3]
[375754572,1753729869802,-500.0,0.00025705,2]
[375754573,1753729869812,-150.0,0.00025707,2]
[375754574,1753729869821,-500.0,0.00025749,2]
[375754575,1753729869831,-440.95674336,0.00025753,4]
[375754576,1753729916237,334.1360802,0.00018603,2]
[375754577,1753729916578,167.0680401,0.00018868,2]
[375754578,1753729945231,150.0,0.00020997,30]
[375754579,1753729947670,17512.13013394,0.00018978,2]
[375754580,1753729947694,40000.0,0.00018978,2]
[375754581,1753729947716,40000.0,0.00018978,2]
[375754582,1753729947738,40000.0,0.00018978,2]
[375754583,1753729947759,40000.0,0.00018978,2]
[375754584,1753729947781,40000.0,0.00018978,2]
[375754585,1753729947803,40000.0,0.00018978,2]
[375754586,1753729947824,10097.13398065,0.00018978,2]
[375754588,1753729964993,5000.0,0.0001901,2]
[375754589,1753729980766,5000.0,0.0001901,2]
[375754590,1753729996886,4826.49621017,0.0001901,2]
[375754592,1753730005187,1025.17932632,0.0001901,2]
[375754593,1753730013750,4980.21253702,0.0001901,2]
[375754594,1753730026379,150.0,0.00021722,30]
[375754595,1753730026776,150.0,0.00022756,30]
[375754596,1753730028908,4710.52945049,0.0001901,2]
[375754597,1753730044615,4360.44849535,0.0001901,2]
[375754598,1753730044638,219.4518461,0.0001901,2]
[375754599,1753730061887,4597.8774531,0.0001901,2]
[375754600,1753730074477,7043.1637219,0.00018367,2]
[375754601,1753730080468,5000.0,0.0001901,2]
[375754602,1753730087755,170.13530146,0.00018978,2]
[375754603,1753730095833,5000.0,0.0001901,2]
[375754604,1753730107471,150.0,0.00020301,30]
[375754605,1753730107921,150.0,0.00021268,30]
[375754606,1753730108331,150.0,0.00022234,30]
[375754607,1753730111215,3800.63756325,0.0001901,2]
[375754608,1753730188040,150.0,0.00020303,30]
[375754609,1753730190579,150.0,0.00021269,30]
[375754610,1753730191052,150.0,0.00022236,30]
[375754611,1753730219650,292.1724496,0.00018603,2]
[375754612,1753730227492,171.0,0.00018548,3]
[375754613,1753730272205,150.0,0.00020315,30]
[375754614,1753730272605,150.0,0.00021282,30]
[375754615,1753730273008,150.0,0.0002225,30]
[375754616,1753730284123,163.26387,0.00018511,2]
[375754617,1753730284361,163.26387,0.00018511,120]
[375754619,1753730350061,150.0,0.00019571,30]
[375754620,1753730350464,150.0,0.00020503,30]
[375754621,1753730350857,150.0,0.00021435,30]
[375754622,1753730351360,159.25,0.00022367,30]
[375754624,1753730366508,302.15987902,0.00019,2]
[375754627,1753730435628,150.0,0.0001937,30]
[375754628,1753730436011,150.0,0.00020292,30]
[375754629,1753730436710,150.0,0.00021215,30]
[375754630,1753730436913,150.0,0.00022137,30]
[375754631,1753730500202,511.538827,0.00013699,2]
[375754633,1753730513170,150.0,0.00019433,30]
[375754634,1753730513573,150.0,0.00020359,30]
[375754635,1753730513972,150.0,0.00021284,30]
[375754636,1753730514364,150.0,0.0002221,30]
[375754637,1753730520938,175.30346976,0.00018603,2]
[375754638,1753730595400,150.0,0.00020419,30]
[375754639,1753730595824,150.0,0.00021391,30]
[375754640,1753730596256,150.0,0.00022363,30]
[375754642,1753730651218,10024.28593,0.00018265,2]
[375754643,1753730667546,302.57643837,0.000189,2]
[375754644,1753730677222,150.0,0.00020189,30]
[375754645,1753730679689,150.0,0.00021151,30]
[375754646,1753730680083,150.0,0.00022112,30]
[375754648,1753730698280,866.538784,0.00018176,2]
[375754649,1753730709577,1359.89446644,0.00018176,2]
[375754650,1753730709602,23540.10553356,0.00018176,2]
[375754651,1753730716813,5000.0,0.0001901,2]
[375754652,1753730732990,5000.0,0.0001901,2]
[375754655,1753730746132,-257.14579671,0.00019078,2]
[375754656,1753730746155,-302.57643837,0.00019089,2]
[375754657,1753730746180,-236.31,0.00019168,3]
[375754658,1753730746206,-551.03478696,0.00019168,3]
[375754659,1753730757500,150.0,0.00019811,30]
[375754660,1753730757905,150.0,0.00020755,30]
[375754661,1753730758320,150.0,0.00021698,30]
[375754662,1753730758726,150.0,0.00022642,30]
[375754670,1753730782649,6459.89446644,0.00019,2]
[375754671,1753730782670,25122.10553356,0.00019,2]
[375754674,1753730792620,5000.0,0.0001901,2]
[375754675,1753730808384,5000.0,0.0001901,2]
[375754678,1753730828561,4877.89446644,0.0001901,2]
[375754679,1753730828583,122.10553356,0.0001901,2]
[375754680,1753730831078,-219.73346999,0.00019076,2]
[375754681,1753730831099,-219.73346998,0.00019078,2]
[375754682,1753730831121,-157.91521304,0.00019168,3]
[375754683,1753730831142,-175.84996703,0.00019168,3]
[375754684,1753730831732,434.51906629,0.000189,2]
[375754685,1753730832088,-332.32003297,0.00019168,3]
[375754686,1753730832108,-278.44755222,0.00019168,3]
[375754687,1753730837087,150.0,0.00019756,30]
[375754688,1753730837494,150.0,0.00020697,30]
[375754689,1753730837897,150.0,0.00021638,30]
[375754690,1753730838291,150.0,0.00022579,30]
[375754691,1753730843740,5000.0,0.0001901,2]
[375754692,1753730852138,-469.34244778,0.00019168,3]